bitfinex/quotes_ETHUSD_20220111
["timestamp","ask_amount","ask_price","bid_price","bid_amount"]
[1641919611917,1.92394,3227.7,3227.3,1.1320095]
[1641919612116,0.374,3227.7,3227.3,1.1320095]
[1641919612316,0.374,3227.7,3227.4,0.00341054]
[1641919612518,0.06776956,3227.7,3227.4,0.00341054]
[1641919612716,0.01046133,3227.6,3227.4,0.00341054]
[1641919612916,0.374,3228.0,3226.9,0.00625266]
[1641919613118,0.04605148,3227.6,3226.9,0.00625266]
[1641919613517,1.0,3227.9,3226.9,0.00625266]
[1641919613718,0.374,3227.8,3226.9,0.00625266]
[1641919613918,0.374,3227.8,3227.3,0.91952582]
[1641919614118,0.00113684,3228.2,3227.3,0.91952582]
[1641919614318,0.00113684,3228.2,3228.0,1.15702076]
[1641919614617,0.00113684,3228.2,3227.4,0.00341054]
[1641919615018,0.00113684,3228.2,3226.9,0.00625266]
[1641919615270,0.374,3228.1,3226.9,0.00625266]
[1641919615472,0.77494,3227.5,3226.9,0.00625266]
[1641919615668,0.02210584,3227.4,3226.9,0.00625266]
[1641919615872,0.374,3227.3,3226.9,0.00625266]
[1641919616066,0.01815345,3227.2,3226.9,0.00625266]
[1641919616266,0.01815345,3227.2,3225.9,3.95960636]
[1641919616267,3.5,3227.0,3225.9,3.95960636]
[1641919616467,0.38669338,3226.9,3226.0,0.89862081]
[1641919616668,0.77521,3226.5,3226.0,0.90373662]
[1641919616867,0.37513684,3227.1,3226.0,0.90373662]
[1641919617068,0.37513684,3227.1,3226.8,0.68004009]
[1641919617867,0.1166,3227.0,3226.8,0.68004009]
[1641919618476,0.1166,3227.0,3226.9,2.64022267]
[1641919619324,0.4906,3227.0,3226.9,2.64022267]
[1641919619523,0.7906,3227.0,3226.0,1.34971351]
[1641919619724,0.7906,3227.0,3226.0,0.00511581]
[1641919619725,0.7752,3226.5,3226.0,0.00511581]
[1641919619926,0.7752,3226.5,3226.4,0.66901703]
[1641919620129,0.374,3226.6,3226.4,1.59964529]
[1641919620323,0.374,3226.6,3226.4,0.00284212]
[1641919620524,0.374,3226.6,3226.5,0.0022737]
[1641919620725,0.374,3226.6,3225.8,2.6036687]
[1641919620922,0.374,3226.6,3226.4,2.64050944]
[1641919621325,0.374,3226.6,3226.4,2.57850944]
[1641919621527,0.1166,3226.5,3226.4,2.57850944]
[1641919621728,0.1166,3226.5,3226.4,3.0835824]
[1641919621926,0.1166,3226.5,3226.4,3.3335824]
[1641919622131,0.00113684,3227.1,3226.5,6.15]
[1641919622524,0.00284212,3227.0,3226.5,6.15]
[1641919622767,0.03930091,3226.6,3226.5,6.15]
[1641919623067,0.03930091,3226.6,3226.4,3.30507296]
[1641919623866,0.81434091,3226.6,3226.4,0.50507296]
[1641919624271,0.03930091,3226.6,3226.4,0.50507296]
[1641919624868,0.0022737,3226.9,3226.4,0.50507296]
[1641919625071,0.01223252,3228.5,3226.5,6.15]
[1641919625072,2.3245,3228.3,3226.5,6.15]
[1641919625273,3.7993,3228.7,3228.1,1.02303331]
[1641919625470,0.51804102,3229.4,3228.6,1.52170499]
[1641919625868,0.51804102,3229.4,3227.9,0.25]
[1641919625869,0.01023162,3228.7,3227.9,0.25]
[1641919626070,0.03365108,3228.6,3227.9,0.25]
[1641919626275,0.0096632,3228.6,3227.9,0.25]
[1641919626517,0.00909477,3228.5,3227.9,0.25]
[1641919626921,0.374,3229.0,3228.2,0.5847088]
[1641919626922,0.77462,3228.3,3228.2,0.5847088]
[1641919627317,0.78257793,3228.3,3228.2,0.5847088]
[1641919628221,0.90668693,3228.3,3228.2,0.5847088]
[1641919628929,0.90668693,3228.3,3228.0,0.01473227]
[1641919629120,0.02936602,3228.2,3228.0,0.01473227]
[1641919629318,0.03675552,3228.2,3228.0,0.01473227]
[1641919629518,0.03675552,3228.2,3226.9,9.2132]
[1641919629519,0.04082769,3228.0,3226.9,5.5289]
[1641919629720,0.04082769,3228.0,3226.6,0.00170527]
[1641919629721,0.77492,3227.5,3226.6,0.00170527]
[1641919629919,0.77492,3227.5,3227.1,0.50314265]
[1641919630170,0.77492,3227.5,3225.7,5.9741]
[1641919630171,0.02608689,3227.4,3226.1,0.00454739]
[1641919630373,0.00284212,3227.4,3226.1,0.00454739]
[1641919630572,0.02463277,3227.3,3225.8,0.00625266]
[1641919630773,1.55004,3227.0,3225.6,0.00738951]
[1641919630975,0.01054674,3226.9,3226.3,0.51877556]
[1641919631172,1.55004,3227.0,3226.3,0.51877556]
[1641919631380,1.55004,3227.0,3226.4,0.00284212]
[1641919631580,0.01340684,3226.9,3226.4,0.00284212]
[1641919631872,0.01340684,3226.9,3225.6,0.00738951]
[1641919632072,0.77492,3227.0,3226.5,1.03267727]
[1641919632275,0.77492,3227.0,3225.6,0.00738951]
[1641919632473,0.77492,3227.0,3226.6,0.00170527]
[1641919632672,0.02118983,3226.9,3226.4,0.01289684]
[1641919632875,0.77504,3226.7,3226.4,0.01289684]
[1641919633074,1.55007,3226.8,3226.5,0.0022737]
[1641919634223,1.55007,3226.8,3226.2,0.47402593]
[1641919634419,1.55007,3226.8,3225.3,5.4078]
[1641919634420,1.55023,3226.5,3225.3,5.4078]
[1641919634621,1.55023,3226.5,3226.3,0.00113684]
[1641919634922,6.524,3226.4,3225.5,0.00568423]
[1641919635120,0.77524,3226.0,3225.5,0.00568423]
[1641919635320,0.77524,3226.0,3225.3,0.00682108]
[1641919635522,0.77524,3226.0,3225.8,0.6090117]
[1641919635920,0.77524,3226.0,3225.9,0.00341054]
[1641919636522,0.76024,3226.0,3225.3,0.00682108]
[1641919636921,0.02992859,3225.9,3225.3,0.00682108]
[1641919637127,0.77528,3225.7,3225.4,0.52351567]
[1641919637322,0.77528,3225.7,3225.3,0.00682108]
[1641919637525,0.77528,3225.7,3225.2,0.972036]
[1641919637526,6.54125995,3225.6,3225.2,0.972036]
[1641919637773,6.54125995,3225.6,3225.3,0.00113685]
[1641919637774,6.524,3225.6,3225.3,0.00113685]
[1641919637976,1.0,3225.5,3225.3,0.00113685]
[1641919638174,3.1,3225.3,3224.2,3.8972]
[1641919638376,0.77557,3224.8,3224.6,0.58111868]
[1641919638575,0.78450765,3224.8,3224.3,0.00568423]
[1641919638977,0.78450765,3224.8,3223.8,0.00852635]
[1641919639176,0.78450765,3224.8,3223.6,6.05709477]
[1641919639382,0.00568423,3224.7,3223.2,6.11]
[1641919639576,0.77569,3224.0,3223.9,0.5817223]
[1641919639779,0.77569,3224.0,3223.4,0.00170527]
[1641919639780,2.21649,3224.0,3223.4,0.00170527]
[1641919639979,0.00967332,3223.9,3222.8,0.3496]
[1641919640280,0.00967332,3223.9,3222.6,1.35966252]
[1641919640281,0.04329113,3223.6,3222.6,1.35966252]
[1641919640477,6.17806215,3223.4,3222.6,1.35966252]
[1641919640685,0.374,3223.3,3222.6,1.90807932]
[1641919640878,1.37627369,3223.3,3222.7,0.00113685]
[1641919641076,0.00170527,3223.2,3222.7,0.00113685]
[1641919641279,0.374,3223.1,3222.7,0.00113685]
[1641919641526,0.374,3223.1,3222.1,2.75796996]
[1641919641527,6.05,3222.9,3222.1,2.75796996]
[1641919641728,6.05,3222.9,3222.3,0.972036]
[1641919641729,0.01376941,3222.7,3222.3,0.972036]
[1641919641929,0.374,3222.6,3222.4,0.00170527]
[1641919642127,1.1503,3222.6,3221.0,6.35862124]
[1641919642327,1.1503,3222.6,3221.0,3.90797953]
[1641919642524,0.374,3222.6,3222.5,0.6801761]
[1641919642927,0.37513685,3222.6,3222.5,0.6801761]
[1641919643124,0.37513685,3222.6,3222.5,1.60727256]
[1641919643738,4.57513685,3222.6,3222.5,0.6801761]
[1641919643924,0.37513685,3222.6,3222.5,0.6801761]
[1641919644325,0.00113685,3222.6,3222.5,0.6801761]
[1641919644726,0.00113685,3222.6,3222.5,1.72017372]
[1641919645769,4.00113685,3222.6,3222.5,0.6801761]
[1641919645967,0.00113685,3222.6,3222.5,0.6801761]
[1641919646569,0.77723685,3222.6,3221.1,2.589163]
[1641919646871,0.77723685,3222.6,3221.0,3.9029]
[1641919646872,0.77723685,3222.6,3221.5,1.09654294]
[1641919647073,0.77723685,3222.6,3221.5,1.39654294]
[1641919647269,0.77723685,3222.6,3221.6,0.00454738]
[1641919647669,0.7763,3222.1,3221.6,0.00454738]
[1641919647868,0.7763,3222.1,3221.0,0.00795793]
[1641919647869,0.01211768,3221.8,3221.0,0.00795793]
[1641919648068,0.39304028,3221.7,3221.0,0.00795793]
[1641919648270,6.15,3221.6,3220.2,0.01250531]
[1641919648472,6.15,3221.6,3219.7,6.66777947]
[1641919648473,6.15,3221.3,3219.7,6.66777947]
[1641919648672,0.374,3221.5,3219.7,6.60577947]
[1641919648673,2.34325338,3221.2,3219.7,6.60577947]
[1641919648930,3.64893761,3221.2,3219.8,2.5840472]
[1641919649120,1.37911581,3221.1,3219.8,2.5840472]
[1641919649317,1.37911581,3221.1,3221.0,0.53546547]
[1641919649523,1.37911581,3221.1,3220.9,0.62493889]
[1641919649524,0.00454738,3221.0,3220.9,0.62493889]
[1641919649724,6.15,3220.9,3220.8,0.65687438]
[1641919649922,6.15,3220.8,3220.4,0.02]
[1641919650125,6.15,3220.8,3219.7,5.28560449]
[1641919650126,1.55356,3220.5,3219.4,0.77374127]
[1641919650326,1.55356,3220.5,3219.4,0.71174127]
[1641919650327,0.02498724,3220.3,3219.4,0.71174127]
[1641919650519,0.02498724,3220.3,3219.5,0.0022737]
[1641919650520,0.374,3220.2,3219.5,0.0022737]
[1641919650724,0.374,3220.2,3218.0,2.07403457]
[1641919650725,0.77704,3219.1,3218.0,2.07403457]
[1641919650920,0.77704,3219.1,3218.4,0.99710033]
[1641919650921,0.374,3219.0,3218.4,0.99710033]
[1641919651119,0.374,3219.0,3218.9,0.82957552]
[1641919651322,0.374,3219.0,3218.1,0.50962884]
[1641919651520,0.374,3219.7,3219.1,0.0059915]
[1641919651921,0.374,3219.7,3219.2,0.66142297]
[1641919652333,0.0120272,3219.6,3217.3,4.2180705]
[1641919652522,0.00284212,3220.0,3217.4,1.0]
[1641919652772,0.05083192,3219.0,3217.5,0.374]
[1641919653068,2.59474492,3220.4,3217.7,0.01710381]
[1641919653069,2.58745773,3220.3,3217.7,0.01710381]
[1641919653271,0.00568423,3220.3,3219.9,0.60096021]
[1641919653470,0.00511581,3220.2,3219.9,0.60096021]
[1641919653870,0.15117139,3220.4,3219.9,0.60096021]
[1641919653871,0.37854738,3220.1,3219.9,0.60096021]
[1641919654068,0.67002102,3220.1,3219.2,0.98858749]
[1641919654368,0.67002102,3220.1,3217.9,7.3342]
[1641919654369,0.37002102,3220.1,3219.3,0.00454738]
[1641919654569,0.67002102,3220.1,3219.3,0.00454738]
[1641919654771,0.0285722,3220.0,3218.0,0.01193689]
[1641919654975,0.0285722,3220.0,3219.1,0.53292399]
[1641919654976,0.374,3219.9,3219.1,0.53292399]
[1641919655272,0.374,3219.9,3219.3,1.13074152]
[1641919655467,0.374,3219.9,3219.2,0.00511581]
[1641919655668,0.374,3219.9,3219.4,0.00397896]
[1641919655871,0.374,3219.9,3219.2,0.00511581]
[1641919656520,0.374,3219.9,3219.8,1.11211136]
[1641919656725,0.01296958,3220.6,3219.9,0.00531262]
[1641919656920,0.01296958,3220.6,3219.8,1.41211136]
[1641919656921,0.01296958,3220.6,3220.5,5.36534529]
[1641919657119,0.01296958,3220.6,3220.5,5.66534529]
[1641919657317,0.01271558,3221.4,3221.0,1.06193597]
[1641919657521,0.01271558,3221.4,3220.6,0.67337866]
[1641919657717,0.01271558,3221.4,3220.6,0.97337866]
[1641919657718,0.374,3221.3,3220.6,0.97337866]
[1641919658117,0.00625266,3221.2,3220.6,0.97337866]
[1641919658520,0.00568424,3221.1,3220.6,0.97337866]
[1641919658719,0.00568424,3221.1,3220.7,0.8138865]
[1641919658917,0.674,3221.3,3220.6,0.97337866]
[1641919658918,0.05903936,3220.9,3220.6,0.67337866]
[1641919659217,0.374,3221.3,3220.6,0.67337866]
[1641919659218,0.00397897,3220.8,3220.6,0.67337866]
[1641919659617,0.00341054,3220.7,3220.6,0.67337866]
[1641919660270,0.00341054,3220.7,3220.4,0.3]
[1641919660471,0.01640797,3220.7,3220.5,1.16305977]
[1641919660677,0.00114482,3220.7,3220.6,6.15]
[1641919660875,0.01119097,3221.6,3220.6,8.43971928]
[1641919661070,0.13819997,3222.4,3220.6,8.43971928]
[1641919661071,0.13819997,3222.4,3220.7,4.7596]
[1641919661269,0.0096632,3222.3,3220.8,2.58851928]
[1641919661472,0.01286745,3221.4,3220.8,0.374]
[1641919661670,0.01286745,3221.4,3220.8,0.58345677]
[1641919661971,0.00397896,3221.3,3220.8,0.58345677]
[1641919662470,0.00341054,3221.2,3220.8,0.58345677]
[1641919662675,0.00341054,3221.2,3220.9,0.01874814]
[1641919662872,0.00284212,3221.1,3220.9,0.01874814]
[1641919663069,0.00284212,3221.1,3221.0,0.94774938]
[1641919663271,0.13819997,3222.4,3221.0,0.94774938]
[1641919663272,0.01216255,3222.3,3221.0,0.94774938]
[1641919663470,0.0229744,3222.2,3220.9,0.01874814]
[1641919663770,0.02182575,3222.3,3221.6,0.56292784]
[1641919664034,0.02182575,3222.3,3220.9,0.01874814]
[1641919664234,0.77632,3222.0,3220.9,0.01874814]
[1641919664430,0.03266683,3221.9,3220.9,0.01874814]
[1641919664632,0.00738951,3221.9,3220.9,0.01874814]
[1641919664829,0.00682108,3221.8,3220.9,0.01874814]
[1641919665029,0.00682108,3221.8,3221.3,0.69695258]
[1641919665235,0.13819997,3222.4,3220.9,0.01874814]
[1641919665236,0.374,3221.7,3220.9,0.01874814]
[1641919665431,0.374,3221.6,3221.4,0.00170527]
[1641919665632,0.3,3221.7,3221.4,0.00170527]
[1641919665830,0.01267243,3222.0,3221.4,0.00170527]
[1641919666031,0.374,3221.9,3221.4,0.00170527]
[1641919666231,0.37513685,3221.9,3221.4,0.00170527]
[1641919666429,0.37513685,3221.9,3221.6,0.70194125]
[1641919666628,0.67513685,3221.9,3221.4,0.00170527]
[1641919666829,4.67453685,3221.9,3221.4,0.00170527]
[1641919667030,1.0,3221.8,3221.4,0.00170527]
[1641919667231,1.92691,3221.7,3221.4,0.00170527]
[1641919667430,0.77651,3221.3,3220.9,0.01874814]
[1641919667670,0.77651,3221.3,3221.2,0.65179014]
[1641919667873,1.07651,3221.3,3221.2,0.65179014]
[1641919668073,0.77651,3221.3,3221.2,0.65292699]
[1641919668370,0.00113685,3221.6,3221.2,0.65292699]
[1641919668769,0.00113685,3221.6,3221.2,0.00113685]
[1641919669169,0.00113685,3221.6,3219.5,0.01238859]
[1641919669372,0.00113685,3221.6,3219.7,0.01261002]
[1641919669373,4.55,3221.5,3219.7,0.01261002]
[1641919669770,4.55,3221.5,3221.3,0.51698669]
[1641919669970,0.00113685,3221.6,3221.3,0.51698669]
[1641919669971,0.77647,3221.4,3221.3,0.51698669]
[1641919670476,0.00113685,3221.6,3221.3,0.51698669]
[1641919670675,0.00113685,3221.6,3221.3,0.00542293]
[1641919670871,0.3103,3221.5,3221.3,0.00542293]
[1641919672119,0.32980479,3221.5,3221.3,0.00542293]
[1641919672321,0.3103,3221.5,3221.3,0.00542293]
[1641919672522,0.02854612,3221.4,3219.9,0.01248362]
[1641919672722,0.2603,3221.5,3219.9,0.01248362]
[1641919672921,0.2603,3221.5,3220.0,0.00795793]
[1641919673523,0.2603,3221.5,3220.1,0.60191971]
[1641919673721,1.0367,3221.5,3221.4,0.55679286]
[1641919673923,0.2603,3221.5,3221.4,0.55679286]
[1641919675371,0.2603,3221.5,3220.2,0.00682108]
[1641919675570,0.41647946,3221.4,3220.2,0.00682108]
[1641919675778,0.02676874,3221.3,3220.1,0.00738951]
[1641919675970,0.374,3221.2,3221.1,0.01766445]
[1641919676170,6.15,3221.1,3219.2,0.98564147]
[1641919676373,0.77671,3220.1,3218.9,0.37092843]
[1641919676571,0.05394235,3220.0,3218.9,0.37092843]
[1641919676776,0.05394235,3220.0,3219.9,0.54944503]
[1641919676970,0.77671,3220.1,3219.9,0.54944503]
[1641919677169,0.77671,3220.1,3219.9,0.55797138]
[1641919677372,0.77671,3220.1,3220.0,0.00795793]
[1641919677972,1.55342,3220.4,3220.0,0.00795793]
[1641919678172,1.77663,3220.5,3220.1,0.83138932]
[1641919678379,1.0,3220.5,3220.1,0.83138932]
[1641919678571,1.0,3221.2,3220.2,0.00682108]
[1641919678771,4.2932,3221.3,3220.2,0.00682108]
[1641919678772,0.6343,3221.3,3220.2,0.00682108]
[1641919679031,0.2603,3220.4,3220.2,0.00682108]
[1641919679228,0.2603,3220.4,3218.9,0.3]
[1641919679426,0.2603,3220.4,3219.4,1.03488531]
[1641919679627,0.2603,3220.4,3219.9,0.90975034]
[1641919679829,2.65126061,3222.4,3220.1,6.15]
[1641919679830,8.5176,3221.7,3220.1,6.15]
[1641919680028,1.1355,3221.7,3220.4,1.34385651]
[1641919680226,1.2202,3221.9,3220.4,1.24385651]
[1641919680427,0.77637,3221.5,3220.4,1.24385651]
[1641919680627,0.77637,3221.5,3220.5,0.02150288]
[1641919680830,0.77637,3221.5,3221.4,0.61031463]
[1641919681229,0.7837595,3221.5,3221.4,0.61031463]
[1641919681631,0.0073895,3221.5,3221.4,1.44162477]
[1641919682132,0.0073895,3221.5,3221.4,1.74162477]
[1641919682771,0.0073895,3221.5,3221.4,1.45408883]
[1641919682973,0.0073895,3221.5,3221.4,1.75408883]
[1641919684072,0.0073895,3221.5,3221.4,0.92277869]
[1641919684673,0.0073895,3221.5,3220.5,0.61631238]
[1641919685080,0.01265234,3222.1,3220.5,0.61631238]
[1641919685081,0.00682108,3221.4,3220.9,1.08774647]
[1641919685478,0.00625265,3221.3,3220.9,1.38774647]
[1641919685677,0.00625265,3221.3,3220.9,1.08774647]
[1641919685879,0.00568423,3221.2,3221.0,0.66447982]
[1641919686279,0.00511581,3221.1,3221.0,0.66447982]
[1641919686719,0.0096632,3221.1,3221.0,0.66447982]
[1641919687119,0.0096632,3221.1,3221.0,1.79232925]
[1641919687322,0.0096632,3221.1,3221.0,6.89232925]
[1641919687521,1.1673,3222.6,3222.0,1.12611026]
[1641919687721,1.5525,3222.1,3221.1,4.2]
[1641919688119,1.5525,3222.1,3221.2,0.30397897]
[1641919688625,1.5525,3222.1,3222.0,0.49337832]
[1641919689019,1.85363684,3222.1,3222.0,0.49337832]
[1641919689219,1.85363684,3222.1,3221.3,0.00341055]
[1641919689220,0.77638,3221.7,3221.3,0.00341055]
[1641919689619,0.3,3221.7,3220.2,0.0096632]
[1641919690021,0.3,3221.8,3220.7,0.83313534]
[1641919690280,0.77642,3221.0,3220.2,0.0096632]
[1641919690481,0.77642,3221.0,3220.8,0.00625266]
[1641919690679,0.01927932,3220.9,3220.3,0.66641238]
[1641919690882,0.77642,3221.0,3220.3,3.31164006]
[1641919691080,4.7186,3222.0,3220.4,1.34273939]
[1641919691287,0.67513684,3222.1,3221.2,0.01263473]
[1641919691288,0.00113684,3222.1,3221.2,0.01263473]
[1641919691780,0.00113684,3222.1,3221.3,0.00341055]
[1641919692179,0.00113684,3222.1,3221.4,0.52415629]
[1641919692381,0.00113684,3222.1,3221.5,1.08195801]
[1641919692581,0.77618,3222.0,3221.5,0.3022737]
[1641919692785,0.04990611,3221.9,3221.6,0.00170527]
[1641919693082,1.60246611,3221.9,3221.6,0.00170527]
[1641919693580,1.60246611,3221.9,3221.5,0.0022737]
[1641919694026,0.77628,3221.8,3221.5,0.0022737]
[1641919694222,0.03161723,3221.7,3221.5,0.0022737]
[1641919694622,0.04990611,3221.9,3221.5,0.0022737]
[1641919695232,0.77621,3221.8,3221.5,0.0022737]
[1641919696023,0.77621,3221.8,3221.5,2.39541256]
[1641919696226,0.77621,3221.8,3221.5,0.87857659]
[1641919696427,0.77621,3221.8,3221.4,0.52415629]
[1641919696428,0.77621,3221.8,3221.6,0.00170527]
[1641919696823,0.77621,3221.8,3221.5,0.0022737]
[1641919697675,0.82610357,3221.8,3221.6,0.00961955]
[1641919698081,0.82610357,3221.8,3221.7,0.00113685]
[1641919698282,3.42610357,3221.8,3221.7,0.00113685]
[1641919698681,3.42610357,3221.8,3221.5,0.0022737]
[1641919698879,1.0,3221.7,3221.5,0.0022737]
[1641919699280,3.42610357,3221.8,3221.5,1.02276565]
[1641919699281,0.82610357,3221.8,3221.5,1.02276565]
[1641919699479,0.04989357,3221.8,3221.6,6.2081]
[1641919699681,0.04989357,3221.8,3221.6,6.14780527]
[1641919699879,0.00113684,3222.1,3221.7,0.00113685]
[1641919700279,0.00113684,3222.1,3221.6,5.28790442]
[1641919700478,0.00170527,3222.0,3221.6,5.28790442]
[1641919700880,0.00113685,3221.9,3221.6,5.28790442]
[1641919701079,0.77622,3221.8,3221.6,5.28790442]
[1641919702726,0.75622,3221.8,3221.7,0.01277631]
[1641919704229,1.55247,3222.0,3221.7,0.01277631]
[1641919704230,0.77616,3222.0,3221.7,0.01277631]
[1641919704626,0.00113685,3221.9,3221.7,0.01277631]
[1641919705028,0.04999741,3221.9,3221.7,0.01277631]
[1641919705681,0.12551885,3221.9,3221.7,0.01277631]
[1641919706481,0.12551885,3221.9,3221.7,1.17304798]
[1641919706888,0.12551885,3221.9,3221.7,1.47304798]
[1641919708935,0.90169885,3221.9,3221.7,1.47304798]
[1641919710626,0.90169885,3221.9,3221.7,0.01277631]
[1641919711225,0.81075467,3223.0,3221.8,7.1279]
[1641919711625,0.77604,3222.4,3221.9,0.54822564]
[1641919712030,0.00227369,3222.3,3221.9,0.54822564]
[1641919712427,0.00170527,3222.2,3221.9,0.54822564]
[1641919712680,0.00170527,3222.2,3222.0,0.01277474]
[1641919712881,0.00113684,3222.1,3222.0,0.01277474]
[1641919716183,0.31213684,3222.1,3222.0,0.01277474]
[1641919717027,0.31213684,3222.1,3222.0,0.31277474]
[1641919717430,0.26213684,3222.1,3222.0,0.01277474]
[1641919717631,0.26213684,3222.1,3222.0,0.31277474]
[1641919720789,0.26213684,3222.1,3222.0,0.01277474]
[1641919721393,0.81075467,3223.0,3222.0,15.98881418]
[1641919721587,0.81075467,3223.0,3222.8,0.55545423]
[1641919721797,1.58666467,3223.0,3222.8,0.55545423]
[1641919721990,0.81075467,3223.0,3222.8,0.55545423]
[1641919722986,0.81075467,3223.0,3222.2,1.11330437]
[1641919723188,0.0700191,3222.9,3222.2,0.3]
[1641919723390,0.0700191,3222.9,3222.0,7.44027474]
[1641919723690,0.00397897,3222.8,3222.0,7.44027474]
[1641919724127,0.00341054,3222.7,3222.4,0.57706049]
[1641919724527,0.00284212,3222.6,3222.4,0.57706049]
[1641919724932,0.124338,3222.8,3222.4,0.57706049]
[1641919724933,0.0022737,3222.5,3222.4,0.57706049]
[1641919725128,0.7783437,3222.5,3222.4,0.57706049]
[1641919725428,0.0022737,3222.5,3222.4,0.57706049]
[1641919726629,0.7783037,3222.5,3222.4,0.57706049]
[1641919727029,0.0022737,3222.5,3222.4,0.57706049]
[1641919727683,0.124338,3222.8,3222.5,3.74215822]
[1641919728177,0.124338,3222.8,3222.5,1.29215822]
[1641919728675,0.124338,3222.8,3222.5,3.57994468]
[1641919728877,0.81075467,3223.0,3222.5,3.57994468]
[1641919728878,0.81075467,3223.0,3222.5,5.18164468]
[1641919729079,35.0,3223.9,3223.3,0.33829374]
[1641919729276,35.0,3223.9,3223.3,1.05129374]
[1641919729477,35.0,3223.9,3223.3,1.35129374]
[1641919729679,28.79572,3223.9,3223.8,1.05276655]
[1641919729878,28.92001,3223.9,3223.8,1.05276655]
[1641919730077,1.68211957,3223.9,3223.8,7.50276655]
[1641919730286,4.2363,3225.8,3225.2,1.1041041]
[1641919730287,1.1337,3225.8,3225.2,1.1041041]
[1641919730481,3.9875,3225.9,3225.3,0.3]
[1641919730877,3.9875,3225.9,3224.4,3.16347894]
[1641919731077,0.77535,3225.5,3225.4,0.55926787]
[1641919731287,1.55061,3226.0,3225.4,0.55926787]
[1641919731541,0.00909478,3225.5,3225.4,0.55926787]
[1641919732142,0.00909478,3225.5,3224.9,0.91316144]
[1641919732351,0.03683415,3225.4,3224.0,3.7326]
[1641919732544,0.03683415,3225.4,3224.1,7.1235]
[1641919732545,0.00852636,3225.4,3224.1,7.1235]
[1641919732742,0.00795793,3225.3,3224.1,7.1235]
[1641919733141,0.13819997,3226.1,3224.7,0.6847723]
[1641919733142,0.00738951,3225.2,3224.7,0.6847723]
[1641919733542,1.13819997,3226.1,3224.3,0.3]
[1641919733543,0.00682109,3225.1,3224.3,0.3]
[1641919733743,0.00682109,3225.1,3224.3,0.15]
[1641919734047,0.00625266,3225.0,3224.1,7.1235]
[1641919734246,0.77554,3224.7,3224.1,7.1235]
[1641919734447,0.03856252,3224.6,3224.1,7.1235]
[1641919734645,0.04254149,3224.6,3224.1,7.1235]
[1641919734844,0.00341055,3224.5,3224.1,7.1235]
[1641919735043,0.02360304,3224.4,3224.1,7.1235]
[1641919735273,0.77859212,3224.4,3224.1,7.1235]
[1641919735477,0.03900287,3224.3,3224.1,7.1235]
[1641919735874,0.77575,3224.4,3224.1,7.4235]
[1641919735875,0.00170528,3224.2,3224.1,7.4235]
[1641919737672,0.00170528,3224.2,3224.1,7.4362696]
[1641919737872,0.00170528,3224.2,3224.1,7.3862696]
[1641919738274,0.38600528,3224.2,3224.1,7.3862696]
[1641919738673,0.38600528,3224.2,3224.1,5.9902696]
[1641919740136,0.38600528,3224.2,3224.1,6.2282696]
[1641919740738,0.38600528,3224.2,3224.1,5.9902696]
[1641919741335,0.38600528,3224.2,3224.1,5.81512381]
[1641919742038,0.38600528,3224.2,3222.7,1.1389]
[1641919742039,6.15,3224.1,3222.5,1.1431]
[1641919742238,6.15,3224.1,3222.0,3.0899]
[1641919742239,0.04488925,3223.5,3222.0,3.0899]
[1641919742436,0.04488925,3223.5,3222.7,0.00682108]
[1641919742884,0.747,3223.8,3221.9,0.01136846]
[1641919743084,0.747,3223.8,3221.8,1.08303917]
[1641919743085,0.03117914,3223.7,3221.8,1.08303917]
[1641919743288,0.77589,3223.2,3221.8,1.08303917]
[1641919743486,0.77589,3223.2,3221.9,0.01136846]
[1641919743685,0.04813781,3223.1,3221.9,0.01136846]
[1641919744086,3.4418086,3223.7,3221.9,0.01136846]
[1641919744087,4.6400086,3223.7,3221.9,0.01136846]
[1641919744285,0.77602,3222.7,3222.5,0.53931962]
[1641919744484,0.77602,3222.7,3221.7,0.01250531]
[1641919744686,3.42602,3222.7,3222.6,0.0073895]
[1641919744888,3.42602,3222.7,3221.7,0.01250531]
[1641919745287,2.65,3222.7,3221.7,0.01250531]
[1641919745488,1.0,3222.6,3222.0,0.69517304]
[1641919745893,1.0,3222.6,3222.1,0.01023162]
[1641919746529,0.77607,3222.5,3222.1,0.01023162]
[1641919747131,1.0,3222.6,3222.1,0.01023162]
[1641919747329,1.55208,3222.9,3222.1,0.01023162]
[1641919747531,1.0,3223.0,3222.1,0.01023162]
[1641919747532,0.447,3223.6,3222.1,0.01023162]
[1641919747731,0.77592,3223.1,3222.2,0.01437236]
[1641919748128,0.77592,3223.1,3222.3,0.00909477]
[1641919748928,0.0203573,3223.0,3222.3,0.00909477]
[1641919749331,0.77592,3223.1,3222.3,0.00909477]
[1641919749530,3.6067,3223.6,3222.3,0.00909477]
[1641919749531,0.77596,3222.9,3222.3,0.00909477]
[1641919750584,0.77596,3222.9,3222.7,0.5871488]
[1641919750982,0.77591,3223.1,3222.8,0.00625265]
[1641919752586,0.77591,3223.1,3223.0,0.01436589]
[1641919752986,0.77591,3223.1,3223.0,0.0194817]
[1641919753386,1.16021,3223.1,3223.0,0.0194817]
[1641919753587,1.16021,3223.1,3223.0,10.0194817]
[1641919753791,1.16021,3223.1,3223.0,10.3194817]
[1641919754623,4.61021,3223.1,3223.0,10.3194817]
[1641919755122,5.61021,3223.1,3223.0,10.3194817]
[1641919755922,2.16021,3223.1,3223.0,10.3194817]
[1641919756122,1.16021,3223.1,3223.0,10.3194817]
[1641919756522,1.16021,3223.1,3223.0,10.0194817]
[1641919757124,3.46021,3223.1,3223.0,8.6224817]
[1641919757524,2.16021,3223.1,3223.0,8.63685369]
[1641919757785,1.16021,3223.1,3223.0,8.63685369]
[1641919757985,1.16021,3223.1,3223.0,8.57485369]
[1641919759986,1.16021,3223.1,3223.0,8.87485369]
[1641919760187,0.3843,3223.1,3223.0,9.8023311]
[1641919760484,0.77584,3223.3,3223.0,8.87485369]
[1641919760688,1.16014,3223.3,3223.0,8.87485369]
[1641919760886,0.00113685,3223.2,3223.0,8.57485369]
[1641919761286,0.00113685,3223.2,3223.0,8.87485369]
[1641919762128,0.07115595,3223.2,3223.0,8.87485369]
[1641919762328,0.07115595,3223.2,3223.0,8.57485369]
[1641919762329,0.00113685,3223.2,3223.0,8.57485369]
[1641919762527,0.02313223,3223.2,3223.0,8.57485369]
[1641919762730,1.55193,3223.1,3223.0,8.57485369]
[1641919762927,0.05010201,3223.2,3223.0,8.57485369]
[1641919763930,1.93621,3223.1,3223.0,8.57485369]
[1641919764137,2.93621,3223.1,3223.0,8.57485369]